bitfinex-derivatives/quotes_BNBF0:USTF0_20250529
["timestamp","ask_amount","ask_price","bid_price","bid_amount"]
[1748511814892,0.2904275,688.64,687.57,0.46060262]
[1748511815393,0.2904275,688.64,687.56,0.46060262]
[1748511817092,0.2904275,688.64,687.55,0.46060262]
[1748511817289,0.2904275,688.64,687.52,0.46060262]
[1748511817689,0.2904275,688.64,687.51,0.46060262]
[1748511819286,0.2904275,688.64,687.49,0.46060262]
[1748511819688,0.2904275,688.64,687.51,0.46060262]
[1748511819892,0.2904275,688.64,687.54,0.46060262]
[1748511820388,0.2904275,688.64,687.5,0.46060262]
[1748511820794,0.2904275,688.64,687.54,0.46060262]
[1748511820991,0.2904275,688.64,687.5,0.46060262]
[1748511821488,0.2904275,688.64,687.46,0.46060262]
[1748511821692,0.2904275,688.64,687.48,0.46060262]
[1748511821893,0.2904275,688.64,687.47,0.46060262]
[1748511822689,0.2904275,688.64,687.48,0.46060262]
[1748511823093,0.2904275,688.64,687.27,0.25289779]
[1748511848205,0.2904275,688.64,687.28,0.29100221]
[1748511883337,0.89695042,688.65,687.28,0.29100221]
[1748511904478,0.89695042,688.65,687.29,0.3597001]
[1748511904711,0.89695042,688.65,688.36,0.45977715]
[1748511905858,0.89695042,688.65,688.42,0.45977715]
[1748511906251,0.89695042,688.65,688.38,0.45977715]
[1748511906652,0.89695042,688.65,687.88,0.45977715]
[1748511906653,0.89695042,688.65,688.42,0.45977715]
[1748511906957,0.89695042,688.65,688.43,0.45977715]
[1748511907152,0.89695042,688.65,688.42,0.45977715]
[1748511908155,0.89695042,688.65,688.41,0.45977715]
[1748511909153,0.89695042,688.65,688.38,0.45977715]
[1748511911156,0.89695042,688.65,688.37,0.45977715]
[1748511911355,0.89695042,688.65,688.38,0.45977715]
[1748511911555,0.89695042,688.65,688.3,0.45977715]
[1748511912358,0.89695042,688.65,688.35,0.45977715]
[1748511912559,0.89695042,688.65,688.31,0.45977715]
[1748511913254,0.89695042,688.65,688.29,0.45977715]
[1748511913456,0.89695042,688.65,688.28,0.45977715]
[1748511913654,0.89695042,688.65,688.25,0.45977715]
[1748511913854,0.89695042,688.65,688.23,0.45977715]
[1748511914156,0.89695042,688.65,688.28,0.45977715]
[1748511914863,0.89695042,688.65,688.23,0.45977715]
[1748511915257,0.89695042,688.65,688.21,0.45977715]
[1748511915457,0.89695042,688.65,688.25,0.45977715]
[1748511916362,0.89695042,688.65,688.47,0.45977715]
[1748511916660,0.89695042,688.65,688.56,0.45977715]
[1748511916858,0.89695042,688.65,688.08,0.45977715]
[1748511916859,0.89695042,688.65,688.58,0.45977715]
[1748511917062,0.89695042,688.65,688.6,0.45977715]
[1748511917259,0.89695042,688.65,688.61,0.45977715]
[1748511917763,0.89695042,688.65,688.62,0.45977715]
[1748511918263,0.89695042,688.65,688.59,0.45977715]
[1748511918464,0.89695042,688.65,687.3,0.93871169]
[1748511918465,0.89695042,688.65,688.57,0.45977715]
[1748511918661,0.89695042,688.65,688.59,0.45977715]
[1748511918861,0.89695042,688.65,688.64,0.45977715]
[1748511919056,0.89695042,688.65,688.61,0.45977715]
[1748511919460,0.89695042,688.65,688.56,0.45977715]
[1748511920062,0.89695042,688.65,688.49,0.45977715]
[1748511920259,0.89695042,688.65,688.4,0.45977715]
[1748511920659,0.89695042,688.65,688.42,0.45977715]
[1748511921165,0.89695042,688.65,688.4,0.45977715]
[1748511921961,0.89695042,688.65,688.37,0.45977715]
[1748511922269,0.25271046,689.33,688.17,0.45977715]
[1748511922459,0.290141,689.32,688.17,0.45977715]
[1748511923061,0.290141,689.32,688.16,0.45977715]
[1748511923261,0.290141,689.32,688.15,0.45977715]
[1748511923661,0.290141,689.32,688.13,0.45977715]
[1748511924066,0.290141,689.32,688.12,0.45977715]
[1748511924260,0.290141,689.32,688.11,0.45977715]
[1748511925061,0.290141,689.32,688.06,0.45977715]
[1748511925365,0.290141,689.32,688.04,0.45977715]
[1748511925962,0.290141,689.32,688.07,0.45977715]
[1748511926763,0.290141,689.32,688.02,0.45977715]
[1748511927166,0.290141,689.32,688.01,0.45977715]
[1748511927367,0.290141,689.32,687.98,0.45977715]
[1748511927567,0.290141,689.32,687.87,0.45977715]
[1748511927762,0.290141,689.32,687.92,0.45977715]
[1748511928063,0.290141,689.32,687.9,0.45977715]
[1748511928467,0.290141,689.32,687.91,0.45977715]
[1748511928669,0.290141,689.32,687.9,0.45977715]
[1748511928870,0.290141,689.32,687.92,0.45977715]
[1748511929271,0.290141,689.32,687.93,0.45977715]
[1748511929673,0.290141,689.32,687.98,0.45977715]
[1748511930591,0.290141,689.32,688.02,0.45977715]
[1748511931072,0.290141,689.32,688.03,0.45977715]
[1748511931366,0.290141,689.32,687.99,0.45977715]
[1748511932573,0.290141,689.32,687.98,0.45977715]
[1748511934272,0.290141,689.32,687.99,0.45977715]
[1748511934668,0.290141,689.32,688.05,0.45977715]
[1748511934972,0.290141,689.32,688.03,0.45977715]
[1748511935172,0.290141,689.32,687.88,0.29074838]
[1748511935173,0.290141,689.32,687.99,0.45977715]
[1748511936266,0.290141,689.32,688.0,0.45977715]
[1748511936873,0.290141,689.32,687.98,0.45977715]
[1748511937087,0.290141,689.32,687.95,0.45977715]
[1748511937273,0.290141,689.32,687.94,0.45977715]
[1748511937573,0.290141,689.32,687.89,0.45977715]
[1748511938167,0.290141,689.32,687.88,0.29074838]
[1748511938168,0.290141,689.32,687.9,0.45977715]
[1748511938373,0.290141,689.32,687.88,0.29074838]
[1748511939174,0.290141,689.32,687.88,0.75052553]
[1748511939374,0.290141,689.32,687.9,0.45977715]
[1748511939577,0.290141,689.32,687.93,0.45977715]
[1748511939775,0.290141,689.32,687.88,0.29074838]
[1748511942080,0.290141,689.32,687.92,0.45977715]
[1748511942277,0.290141,689.32,687.93,0.45977715]
[1748511943177,0.290141,689.32,687.94,0.45977715]
[1748511944179,0.290141,689.32,687.95,0.45977715]
[1748511945279,0.290141,689.32,687.97,0.45977715]
[1748511945578,0.290141,689.32,687.98,0.45977715]
[1748511945777,0.290141,689.32,688.0,0.45977715]
[1748511946182,0.290141,689.32,688.03,0.45977715]
[1748511946779,0.290141,689.32,688.0,0.45977715]
[1748511947183,0.290141,689.32,688.02,0.45977715]
[1748511947382,0.290141,689.32,688.04,0.45977715]
[1748511947883,0.290141,689.32,688.03,0.45977715]
[1748511948088,0.290141,689.32,688.16,0.45977715]
[1748511948279,0.290141,689.32,688.19,0.45977715]
[1748511948685,0.290141,689.32,688.18,0.45977715]
[1748511949200,0.290141,689.32,688.19,0.45977715]
[1748511949886,0.290141,689.32,688.2,0.45977715]
[1748511951986,0.290141,689.32,687.88,0.29074838]
[1748512035641,0.290141,689.32,687.45,0.2527536]
[1748512043653,0.290141,689.32,687.45,0.54368384]
[1748512047353,0.290141,689.32,687.46,0.29092601]
[1748512056282,0.290141,689.32,687.67,0.45876201]
[1748512056472,0.290141,689.32,687.63,0.45876201]
[1748512057373,0.290141,689.32,687.62,0.45876201]
[1748512057675,0.290141,689.32,687.63,0.45876201]
[1748512058274,0.290141,689.32,687.67,0.45876201]
[1748512058472,0.290141,689.32,687.68,0.45876201]
[1748512058671,0.290141,689.32,687.64,0.45876201]
[1748512059571,0.290141,689.32,687.65,0.45876201]
[1748512060176,0.290141,689.32,687.64,0.45876201]
[1748512060573,0.290141,689.32,687.65,0.45876201]
[1748512060981,0.290141,689.32,687.66,0.45876201]
[1748512061277,0.290141,689.32,687.65,0.45876201]
[1748512061477,0.290141,689.32,687.46,0.29092601]
[1748512061478,0.290141,689.32,687.67,0.45876201]
[1748512062073,0.290141,689.32,687.75,0.45876201]
[1748512062378,0.290141,689.32,687.68,0.45876201]
[1748512062579,0.290141,689.32,687.69,0.45876201]
[1748512062777,0.290141,689.32,687.7,0.45876201]
[1748512062972,0.290141,689.32,687.73,0.45876201]
[1748512063375,0.290141,689.32,687.79,0.45876201]
[1748512063779,0.290141,689.32,687.8,0.45876201]
[1748512064178,0.290141,689.32,687.77,0.45876201]
[1748512064479,0.290141,689.32,687.79,0.45876201]
[1748512064673,0.290141,689.32,687.82,0.45876201]
[1748512065279,0.290141,689.32,687.8,0.45876201]
[1748512065476,0.290141,689.32,687.82,0.45876201]
[1748512065673,0.290141,689.32,687.83,0.45876201]
[1748512065880,0.290141,689.32,687.86,0.45876201]
[1748512066581,0.290141,689.32,687.46,0.29092601]
[1748512066582,0.290141,689.32,687.89,0.45876201]
[1748512067281,0.290141,689.32,687.9,0.45876201]
[1748512067481,0.290141,689.32,687.91,0.45876201]
[1748512067681,0.290141,689.32,687.88,0.45876201]
[1748512068079,0.290141,689.32,687.89,0.45876201]
[1748512068577,0.290141,689.32,687.9,0.45876201]
[1748512069177,0.290141,689.32,687.87,0.45876201]
[1748512069577,0.290141,689.32,687.88,0.45876201]
[1748512069983,0.290141,689.32,687.89,0.45876201]
[1748512070183,0.290141,689.32,687.9,0.45876201]
[1748512070485,0.290141,689.32,688.0,0.45876201]
[1748512071283,0.290141,689.32,688.01,0.45876201]
[1748512071481,0.290141,689.32,688.03,0.45876201]
[1748512071695,0.290141,689.32,688.11,0.45876201]
[1748512072079,0.290141,689.32,688.14,0.45876201]
[1748512072280,0.290141,689.32,688.3,0.45876201]
[1748512072480,0.290141,689.32,688.22,0.45876201]
[1748512072684,0.290141,689.32,688.21,0.45876201]
[1748512073180,0.290141,689.32,688.34,0.45876201]
[1748512073381,0.290141,689.32,688.11,0.45876201]
[1748512073586,0.290141,689.32,688.09,0.45876201]
[1748512074380,0.290141,689.32,688.07,0.45876201]
[1748512075586,0.290141,689.32,687.99,0.45876201]
[1748512076381,0.290141,689.32,687.97,0.45876201]
[1748512076790,0.290141,689.32,687.91,0.45876201]
[1748512077488,0.290141,689.32,687.92,0.45876201]
[1748512077687,0.290141,689.32,687.9,0.45876201]
[1748512078084,0.290141,689.32,687.91,0.45876201]
[1748512078488,0.290141,689.32,687.9,0.45876201]
[1748512080191,0.290141,689.32,687.89,0.45876201]
[1748512080391,0.290141,689.32,687.85,0.45876201]
[1748512080990,0.290141,689.32,687.84,0.45876201]
[1748512081585,0.290141,689.32,687.46,0.29092601]
[1748512081586,0.290141,689.32,687.89,0.45876201]
[1748512081992,0.290141,689.32,687.88,0.45876201]
[1748512082889,0.290141,689.32,687.9,0.45876201]
[1748512083291,0.290141,689.32,687.89,0.45876201]
[1748512083992,0.290141,689.32,687.94,0.45876201]
[1748512084192,0.290141,689.32,687.93,0.45876201]
[1748512084993,0.290141,689.32,688.01,0.45876201]
[1748512085295,0.290141,689.32,687.85,0.45876201]
[1748512085492,0.290141,689.32,687.86,0.45876201]
[1748512086796,0.290141,689.32,687.46,0.29092601]
[1748512086797,0.290141,689.32,688.21,0.45876201]
[1748512087603,0.290141,689.32,688.2,0.45876201]
[1748512088294,0.290141,689.32,688.04,0.45876201]
[1748512088695,0.290141,689.32,688.03,0.45876201]
[1748512089292,0.290141,689.32,688.05,0.45876201]
[1748512089496,0.290141,689.32,688.08,0.45876201]
[1748512089694,0.290141,689.32,688.07,0.45876201]
[1748512089896,0.290141,689.32,688.13,0.45876201]
[1748512090095,0.290141,689.32,688.14,0.45876201]
[1748512090400,0.290141,689.32,688.15,0.45876201]
[1748512090598,0.290141,689.32,688.21,0.45876201]
[1748512090794,0.290141,689.32,688.08,0.29066387]
[1748512090795,0.290141,689.32,688.2,0.45876201]
[1748512091493,0.290141,689.32,688.13,0.45876201]
[1748512091694,0.290141,689.32,688.08,0.29066387]
[1748512095214,0.290141,689.32,687.7,0.45876201]
[1748512095400,0.290141,689.32,687.71,0.29082025]
[1748512095599,0.290141,689.32,687.72,0.45876201]
[1748512095799,0.290141,689.32,687.73,0.2908118]
[1748512100402,0.290141,689.32,687.73,0.74957381]
[1748512101211,0.290141,689.32,687.77,0.45876201]
[1748512101407,0.290141,689.32,687.79,0.45876201]
[1748512101611,0.290141,689.32,687.8,0.2907822]
[1748512102205,0.290141,689.32,687.88,0.45876201]
[1748512102406,0.290141,689.32,687.89,0.45876201]
[1748512103107,0.290141,689.32,687.96,0.45876201]
[1748512103307,0.290141,689.32,687.95,0.45876201]
[1748512103607,0.290141,689.32,687.97,0.45876201]
[1748512104510,0.290141,689.32,687.99,0.45876201]
[1748512105407,0.290141,689.32,688.0,0.45876201]
[1748512105625,0.290141,689.32,688.01,0.45876201]
[1748512106007,0.290141,689.32,688.18,0.45876201]
[1748512106208,0.290141,689.32,688.16,0.45876201]
[1748512106710,0.290141,689.32,687.8,0.2907822]
[1748512106711,0.290141,689.32,688.17,0.45876201]
[1748512107006,0.290141,689.32,688.18,0.45876201]
[1748512107206,0.290141,689.32,688.16,0.45876201]
[1748512107612,0.290141,689.32,688.17,0.45876201]
[1748512107816,0.290141,689.32,688.12,0.45876201]
[1748512108012,0.290141,689.32,688.14,0.45876201]
[1748512108412,0.290141,689.32,687.8,0.2907822]
[1748512108413,0.290141,689.32,688.15,0.45876201]
[1748512109212,0.290141,689.32,688.21,0.45876201]
[1748512109727,0.290141,689.32,688.22,0.45876201]
[1748512110119,0.290141,689.32,688.23,0.45876201]
[1748512111521,0.290141,689.32,688.24,0.45876201]
[1748512112415,0.290141,689.32,687.8,0.2907822]
[1748512112416,0.290141,689.32,688.29,0.45876201]
[1748512112716,0.290141,689.32,688.23,0.45876201]
[1748512112922,0.290141,689.32,688.28,0.45876201]
[1748512113623,0.290141,689.32,688.29,0.45876201]
[1748512113921,0.290141,689.32,688.28,0.45876201]
[1748512114622,0.290141,689.32,688.29,0.45876201]
[1748512114822,0.290141,689.32,688.28,0.45876201]
[1748512116618,0.290141,689.32,688.23,0.45876201]
[1748512117417,0.290141,689.32,688.25,0.45876201]
[1748512117621,0.290141,689.32,688.3,0.45876201]
[1748512118421,0.290141,689.32,688.31,0.45876201]
[1748512118621,0.290141,689.32,687.8,0.2907822]
[1748512118622,0.290141,689.32,688.32,0.45876201]
[1748512119218,0.290141,689.32,688.28,0.45876201]
[1748512119618,0.290141,689.32,688.3,0.45876201]
[1748512120325,0.290141,689.32,688.31,0.45876201]
[1748512120718,0.290141,689.32,688.3,0.45876201]
[1748512120919,0.290141,689.32,688.31,0.45876201]
[1748512121222,0.290141,689.32,688.3,0.45876201]
[1748512122023,0.290141,689.32,688.32,0.45876201]
[1748512122723,0.290141,689.32,688.33,0.45876201]
[1748512123122,0.290141,689.32,688.35,0.45876201]
[1748512123617,0.290141,689.32,688.4,0.45876201]
[1748512123822,0.290141,689.32,688.36,0.45876201]
[1748512124039,0.290141,689.32,688.37,0.45876201]
[1748512124222,0.290141,689.32,688.44,0.45876201]
[1748512124623,0.290141,689.32,688.45,0.45876201]
[1748512125420,0.290141,689.32,688.44,0.45876201]
[1748512125620,0.290141,689.32,688.47,0.45876201]
[1748512125919,0.290141,689.32,688.53,0.45876201]
[1748512126119,0.290141,689.32,688.51,0.45876201]
[1748512126418,0.290141,689.32,688.54,0.45876201]
[1748512126629,0.290141,689.32,688.55,0.45876201]
[1748512127222,0.290141,689.32,688.48,0.45876201]
[1748512127919,0.290141,689.32,688.5,0.45876201]
[1748512128225,0.290141,689.32,688.49,0.45876201]
[1748512128420,0.290141,689.32,688.5,0.45876201]
[1748512129521,0.290141,689.32,688.49,0.45876201]
[1748512129720,0.290141,689.32,688.53,0.45876201]
[1748512130122,0.290141,689.32,688.52,0.45876201]
[1748512130525,0.290141,689.32,688.54,0.45876201]
[1748512130921,0.290141,689.32,688.53,0.45876201]
[1748512131322,0.290141,689.32,688.54,0.45876201]
[1748512131720,0.290141,689.32,688.55,0.45876201]
[1748512131920,0.290141,689.32,688.54,0.45876201]
[1748512132628,0.290141,689.32,688.47,0.45876201]
[1748512134725,0.290141,689.32,688.48,0.45876201]
[1748512135331,0.290141,689.32,687.8,0.2907822]
[1748512135332,0.290141,689.32,688.31,0.45876201]
[1748512135522,0.290141,689.32,688.34,0.45876201]
[1748512136327,0.290141,689.32,688.35,0.45876201]
[1748512136630,0.290141,689.32,688.37,0.45876201]
[1748512137125,0.290141,689.32,688.4,0.45876201]
[1748512137526,0.290141,689.32,688.42,0.45876201]
[1748512137722,0.290141,689.32,688.12,0.45876201]
[1748512137927,0.290141,689.32,688.11,0.45876201]
[1748512138525,0.290141,689.32,688.26,0.45876201]
[1748512138928,0.290141,689.32,688.37,0.45876201]
[1748512139125,0.290141,689.32,688.42,0.45876201]
[1748512139328,0.290141,689.32,688.39,0.45876201]
[1748512139525,0.290141,689.32,688.38,0.45876201]
[1748512139827,0.290141,689.32,688.37,0.45876201]
[1748512140429,0.290141,689.32,688.25,0.45876201]
[1748512140627,0.290141,689.32,688.26,0.45876201]
[1748512140825,0.290141,689.32,688.25,0.45876201]
[1748512141829,0.290141,689.32,688.21,0.45876201]
[1748512142029,0.290141,689.32,687.8,0.2907822]
[1748512142030,0.290141,689.32,688.22,0.45876201]
[1748512142631,0.290141,689.32,688.14,0.45876201]
[1748512143549,0.290141,689.32,688.12,0.45876201]
[1748512143740,0.290141,689.32,688.13,0.45876201]
[1748512143929,0.290141,689.32,688.12,0.45876201]
[1748512144134,0.290141,689.32,687.8,0.2907822]
[1748512144135,0.290141,689.32,688.14,0.45876201]
[1748512144633,0.290141,689.32,688.1,0.45876201]
[1748512145634,0.290141,689.32,688.08,0.45876201]
[1748512146036,0.290141,689.32,688.12,0.45876201]
[1748512146531,0.290141,689.32,688.17,0.45876201]
[1748512146736,0.290141,689.32,688.08,0.45876201]
[1748512147536,0.290141,689.32,688.02,0.45876201]
[1748512149139,0.290141,689.32,688.07,0.45876201]
[1748512149641,0.290141,689.32,688.06,0.45876201]
[1748512149940,0.290141,689.32,688.08,0.45876201]
[1748512150138,0.290141,689.32,688.04,0.45876201]
[1748512151240,0.290141,689.32,688.03,0.45876201]
[1748512151840,0.290141,689.32,688.01,0.45876201]
[1748512152741,0.290141,689.32,688.18,0.45876201]
[1748512152938,0.290141,689.32,688.21,0.45876201]
[1748512153137,0.290141,689.32,688.2,0.45876201]
[1748512153338,0.290141,689.32,688.24,0.45876201]
[1748512153537,0.290141,689.32,688.22,0.45876201]
[1748512153849,0.290141,689.32,688.19,0.45876201]
[1748512154546,0.290141,689.32,688.18,0.45876201]
[1748512155441,0.290141,689.32,688.15,0.45876201]
[1748512155640,0.290141,689.32,688.18,0.45876201]
[1748512156141,0.290141,689.32,688.17,0.45876201]
[1748512156338,0.290141,689.32,688.11,0.45876201]
[1748512157243,0.290141,689.32,688.17,0.45876201]
[1748512157743,0.290141,689.32,688.11,0.45876201]
[1748512158340,0.290141,689.32,688.14,0.45876201]
[1748512158546,0.290141,689.32,688.15,0.45876201]
[1748512158747,0.290141,689.32,688.14,0.45876201]
[1748512161246,0.290141,689.32,688.15,0.45876201]
[1748512162059,0.290141,689.32,688.08,0.45876201]
[1748512162541,0.290141,689.32,687.8,0.2907822]
[1748512162542,0.290141,689.32,688.12,0.45876201]
[1748512162945,0.290141,689.32,688.13,0.45876201]
[1748512163547,0.290141,689.32,688.14,0.45876201]
[1748512164442,0.290141,689.32,688.15,0.45876201]
[1748512164642,0.290141,689.32,688.16,0.45876201]
[1748512165547,0.290141,689.32,688.17,0.45876201]
[1748512166157,0.290141,689.32,688.21,0.45876201]
[1748512166343,0.290141,689.32,688.23,0.45876201]
[1748512166548,0.290141,689.32,688.24,0.45876201]
[1748512166942,0.290141,689.32,688.21,0.45876201]
[1748512167247,0.290141,689.32,688.15,0.45876201]
[1748512167748,0.290141,689.32,688.21,0.45876201]
[1748512167950,0.290141,689.32,688.17,0.45876201]
[1748512168449,0.290141,689.32,688.18,0.45876201]
[1748512168846,0.290141,689.32,687.8,0.2907822]
[1748512168847,0.290141,689.32,688.12,0.45876201]
[1748512169443,0.290141,689.32,688.13,0.45876201]
[1748512170551,0.290141,689.32,688.15,0.45876201]
[1748512170950,0.290141,689.32,688.14,0.45876201]
[1748512171253,0.290141,689.32,688.16,0.45876201]
[1748512171446,0.290141,689.32,688.18,0.45876201]
[1748512171648,0.290141,689.32,688.19,0.45876201]
[1748512171852,0.290141,689.32,688.21,0.45876201]
[1748512172250,0.290141,689.32,688.18,0.45876201]
[1748512172555,0.290141,689.32,688.23,0.45876201]
[1748512173651,0.290141,689.32,688.2,0.45876201]
[1748512174554,0.290141,689.32,688.17,0.45876201]
[1748512175551,0.290141,689.32,688.23,0.45876201]
[1748512175950,0.290141,689.32,688.22,0.45876201]
[1748512176349,0.290141,689.32,688.23,0.45876201]
[1748512176549,0.290141,689.32,688.27,0.45876201]
[1748512176951,0.290141,689.32,688.28,0.45876201]
[1748512177461,0.290141,689.32,688.33,0.45876201]
[1748512177658,0.290141,689.32,688.32,0.45876201]
[1748512178654,0.290141,689.32,688.31,0.45876201]
[1748512179454,0.290141,689.32,688.32,0.45876201]
[1748512179658,0.290141,689.32,688.26,0.45876201]
[1748512179856,0.290141,689.32,688.24,0.45876201]
[1748512182053,0.290141,689.32,688.25,0.45876201]
[1748512183358,0.290141,689.32,688.26,0.45876201]
[1748512183654,0.290141,689.32,688.25,0.45876201]
[1748512184358,0.290141,689.32,688.26,0.45876201]
[1748512185355,0.290141,689.32,688.25,0.45876201]
[1748512185754,0.290141,689.32,688.26,0.45876201]
[1748512186458,0.290141,689.32,687.8,0.2907822]
[1748512186459,0.290141,689.32,688.31,0.45876201]
[1748512187355,0.290141,689.32,687.8,0.2907822]
[1748512187356,0.290141,689.32,688.3,0.45876201]
[1748512187860,0.290141,689.32,688.27,0.45876201]
[1748512188261,0.290141,689.32,688.28,0.45876201]
[1748512188456,0.290141,689.32,688.27,0.45876201]
[1748512189263,0.290141,689.32,688.26,0.45876201]
[1748512189658,0.290141,689.32,688.27,0.45876201]
[1748512190360,0.290141,689.32,688.22,0.45876201]
[1748512190563,0.290141,689.32,688.23,0.45876201]
[1748512191163,0.290141,689.32,688.21,0.45876201]
[1748512191561,0.290141,689.32,688.26,0.45876201]
[1748512191761,0.290141,689.32,688.27,0.45876201]
[1748512192160,0.290141,689.32,688.25,0.45876201]
[1748512192560,0.290141,689.32,688.27,0.45876201]
[1748512192763,0.290141,689.32,688.28,0.45876201]
[1748512192965,0.290141,689.32,688.26,0.45876201]
[1748512193363,0.290141,689.32,688.28,0.45876201]
[1748512193567,0.290141,689.32,688.29,0.45876201]
[1748512193966,0.290141,689.32,688.28,0.45876201]
[1748512194167,0.290141,689.32,688.29,0.45876201]
[1748512194563,0.290141,689.32,688.28,0.45876201]
[1748512194967,0.290141,689.32,688.29,0.45876201]
[1748512196266,0.290141,689.32,688.3,0.45876201]
[1748512196470,0.290141,689.32,688.29,0.45876201]
[1748512197070,0.290141,689.32,688.28,0.45876201]
[1748512197268,0.290141,689.32,688.25,0.45876201]
[1748512197668,0.290141,689.32,688.26,0.45876201]
[1748512197872,0.290141,689.32,688.29,0.45876201]
[1748512198274,0.290141,689.32,688.26,0.45876201]
[1748512198577,0.290141,689.32,688.3,0.45876201]
[1748512199273,0.290141,689.32,688.29,0.45876201]
[1748512200274,0.290141,689.32,688.28,0.45876201]
[1748512201069,0.290141,689.32,688.29,0.45876201]
[1748512201569,0.290141,689.32,688.09,0.45876201]
[1748512202269,0.290141,689.32,688.19,0.45876201]
[1748512202471,0.290141,689.32,688.2,0.45876201]
[1748512203271,0.290141,689.32,688.19,0.45876201]
[1748512203471,0.90133373,689.31,688.19,0.45876201]
[1748512203676,1.19253595,689.3,688.16,0.45876201]
[1748512203976,0.29014942,689.3,687.99,0.45876201]
[1748512204275,0.29014942,689.3,687.97,0.45876201]
[1748512204776,0.90243185,689.29,687.97,0.45876201]
[1748512204977,0.29014942,689.3,687.97,0.45876201]
[1748512205177,0.90243222,689.29,687.97,0.45876201]
[1748512205472,0.29014942,689.3,687.97,0.45876201]
[1748512205676,0.90235267,689.29,687.97,0.45876201]
[1748512205874,0.29014942,689.3,687.99,0.45876201]
[1748512206073,0.9023738,689.29,687.98,0.45876201]
[1748512206274,0.29014942,689.3,687.98,0.45876201]
[1748512206478,0.90237626,689.29,687.99,0.45876201]
[1748512206677,0.29014942,689.3,687.99,0.45876201]
[1748512206872,0.90241301,689.29,687.99,0.45876201]
[1748512207077,0.29014942,689.3,687.99,0.45876201]
[1748512207378,0.90223336,689.29,687.99,0.45876201]
[1748512207578,0.90223056,689.28,688.0,0.45876201]
[1748512207778,0.29014942,689.3,688.0,0.45876201]
[1748512208077,0.90226451,689.29,688.0,0.45876201]
[1748512208376,0.90226627,689.28,688.0,0.45876201]
[1748512208581,0.29014942,689.3,687.98,0.45876201]
[1748512208879,0.90230062,689.29,687.96,0.45876201]
[1748512209181,0.90230062,689.28,688.08,0.45876201]
[1748512209379,0.29014942,689.3,688.08,0.45876201]
[1748512209678,0.90232015,689.29,688.07,0.45876201]
[1748512209875,0.90232015,689.28,688.07,0.45876201]
[1748512210071,0.29014942,689.3,688.06,0.45876201]
[1748512210377,0.90234877,689.29,688.06,0.45876201]
[1748512210579,0.90234877,689.28,688.06,0.45876201]
[1748512210774,0.29014942,689.3,688.06,0.45876201]
[1748512210977,0.90239771,689.29,688.06,0.45876201]
[1748512211173,0.29014942,689.3,688.06,0.45876201]
[1748512211377,0.90239996,689.29,688.06,0.45876201]
[1748512211573,0.90239879,689.28,688.07,0.45876201]
[1748512211877,0.29014942,689.3,688.07,0.45876201]
[1748512212073,0.90243945,689.29,688.07,0.45876201]
[1748512212274,0.29014942,689.3,688.33,0.45876201]
[1748512212475,0.29014942,689.3,688.37,0.45876201]
[1748512213073,0.29014942,689.3,688.38,0.45876201]
[1748512213278,0.29014942,689.3,688.39,0.45876201]
[1748512213675,0.29014942,689.3,688.43,0.45876201]
[1748512214077,0.29014942,689.3,688.44,0.45876201]
[1748512214780,0.29014942,689.3,687.8,0.2907822]
[1748512214781,0.29014942,689.3,688.43,0.45876201]
[1748512215385,0.29014942,689.3,688.42,0.45876201]
[1748512215586,0.29014942,689.3,688.43,0.45876201]
[1748512215781,0.29014942,689.3,688.47,0.45876201]
[1748512217391,0.29014942,689.3,688.5,0.45876201]
[1748512217688,0.29014942,689.3,688.57,0.45876201]
[1748512220681,0.29014942,689.3,688.62,0.45876201]
[1748512220882,0.29014942,689.3,688.61,0.45876201]
[1748512221784,0.29014942,689.3,688.55,0.45876201]
[1748512222288,0.29014942,689.3,688.58,0.45876201]
[1748512222689,0.29014942,689.3,688.59,0.45876201]
[1748512225088,0.29014942,689.3,688.58,0.45876201]
[1748512225890,0.29014942,689.3,688.59,0.45876201]
[1748512226989,0.29014942,689.3,688.6,0.45876201]
[1748512227391,0.29014942,689.3,688.63,0.45876201]
[1748512227686,0.29014942,689.3,688.62,0.45876201]
[1748512227890,0.29014942,689.3,688.63,0.45876201]
[1748512228287,0.29014942,689.3,688.55,0.45876201]
[1748512228792,0.29014942,689.3,688.49,0.45876201]
[1748512230591,0.29014942,689.3,688.43,0.45876201]
[1748512231187,0.29014942,689.3,688.41,0.45876201]
[1748512231693,0.29014942,689.3,688.4,0.45876201]
[1748512232193,0.29014942,689.3,688.43,0.45876201]
[1748512232793,0.29014942,689.3,688.44,0.45876201]
[1748512233004,0.29014942,689.3,688.43,0.45876201]
[1748512234589,0.29014942,689.3,688.44,0.45876201]